bitfinex-derivatives/quotes_BNBF0:USTF0_20250316
["timestamp","ask_amount","ask_price","bid_price","bid_amount"]
[1742148701453,0.27920963,604.97,603.59,0.33135075]
[1742148701654,0.27920963,604.96,603.59,0.33135075]
[1742148701850,0.33058944,604.98,603.59,0.33135075]
[1742148713462,0.27919529,604.97,603.59,0.33135075]
[1742148720775,0.27919529,604.97,603.6,0.30417686]
[1742148720972,0.27919529,604.97,603.62,0.33133428]
[1742148721474,0.27919529,604.97,603.63,0.30416638]
[1742148721675,0.27919529,604.97,603.65,0.33131781]
[1742148723475,0.2792448,604.96,603.65,0.33131781]
[1742148723672,0.2792448,604.97,603.65,0.33131781]
[1742148724974,0.2792448,604.97,603.66,0.30417808]
[1742148725175,0.2792448,604.97,603.68,0.33130135]
[1742148726974,0.2792448,604.97,603.68,0.83830135]
[1742148727172,0.27939214,604.96,603.68,0.83830135]
[1742148727377,0.27939214,604.97,603.68,0.83830135]
[1742148727577,0.27939214,604.96,603.68,0.83830135]
[1742148727879,0.27939214,604.95,603.68,0.83830135]
[1742148728077,0.27939214,604.97,603.68,0.83830135]
[1742148730682,0.33058944,604.98,603.68,0.83830135]
[1742148730992,0.27940665,604.97,603.68,0.83830135]
[1742148731783,0.27940665,604.97,603.69,0.30416012]
[1742148731982,0.27940665,604.97,603.7,0.33129037]
[1742148732382,0.27940665,604.97,603.71,0.30416416]
[1742148732581,0.27940665,604.97,603.72,0.3312794]
[1742148734188,0.27940675,604.96,603.72,0.3312794]
[1742148734386,0.27940675,604.97,603.72,0.3312794]
[1742148734587,0.27940675,604.96,603.72,0.3312794]
[1742148734786,0.27940675,604.97,603.72,0.3312794]
[1742148734985,0.27940675,604.96,603.72,0.3312794]
[1742148735187,0.27940675,604.97,603.72,0.3312794]
[1742148735386,0.27940675,604.96,603.72,0.3312794]
[1742148735687,0.27940675,604.95,603.72,0.3312794]
[1742148735882,0.27940675,604.97,603.72,0.3312794]
[1742148736084,0.27940675,604.96,603.72,0.3312794]
[1742148736287,0.27940675,604.97,603.72,0.3312794]
[1742148736487,0.33058944,604.98,603.72,0.3312794]
[1742148736687,0.27941026,604.97,603.72,0.3312794]
[1742148742796,0.33058944,604.98,603.72,0.3312794]
[1742148743002,0.27941736,604.97,603.72,0.3312794]
[1742148752206,0.33058944,604.98,603.72,0.3312794]
[1742148752401,0.27940225,604.97,603.72,0.3312794]
[1742148753405,0.33058944,604.98,603.72,0.3312794]
[1742148753601,0.2793512,604.97,603.72,0.3312794]
[1742148755305,0.33058944,604.98,603.72,0.3312794]
[1742148755607,0.27925286,604.97,603.72,0.3312794]
[1742148758805,0.27932688,604.96,603.72,0.3312794]
[1742148759005,0.27932688,604.95,603.72,0.3312794]
[1742148759205,0.27932688,604.97,603.72,0.3312794]
[1742148760615,0.33058944,604.98,603.72,0.3312794]
[1742148760616,0.27935423,604.96,603.72,0.3312794]
[1742148760812,0.27935423,604.97,603.72,0.3312794]
[1742148761014,0.27935423,604.96,603.72,0.3312794]
[1742148761214,0.27935423,604.97,603.72,0.3312794]
[1742148761414,0.27935423,604.96,603.72,0.3312794]
[1742148761815,0.27935423,604.95,603.72,0.3312794]
[1742148762013,0.27935423,604.97,603.72,0.3312794]
[1742148762213,0.27935423,604.96,603.72,0.3312794]
[1742148762611,0.27935423,604.95,603.72,0.3312794]
[1742148763011,0.27935423,604.94,603.72,0.3312794]
[1742148763211,0.27935423,604.97,603.72,0.3312794]
[1742148763513,0.27935423,604.96,603.72,0.3312794]
[1742148763715,0.27935423,604.97,603.72,0.3312794]
[1742148763916,0.27935423,604.96,603.72,0.3312794]
[1742148764218,0.27935423,604.95,603.72,0.3312794]
[1742148764418,0.27935423,604.97,603.72,0.3312794]
[1742148764622,0.27935423,604.96,603.72,0.3312794]
[1742148764816,0.27935423,604.97,603.72,0.3312794]
[1742148765017,0.27935423,604.96,603.72,0.3312794]
[1742148765217,0.27935423,604.95,603.72,0.3312794]
[1742148765515,0.27935423,604.94,603.72,0.3312794]
[1742148765716,0.27935423,604.93,603.72,0.3312794]
[1742148765922,0.27935423,604.97,603.72,0.3312794]
[1742148766220,0.279368,604.96,603.72,0.3312794]
[1742148766422,0.279368,604.97,603.72,0.3312794]
[1742148766724,0.279368,604.96,603.73,0.30408365]
[1742148766916,2.77190202,605.31,603.75,0.33126293]
[1742148767116,0.279368,605.3,603.76,0.30408365]
[1742148767821,2.77190202,605.31,603.78,0.33124648]
[1742148768018,3.75386726,605.3,603.79,0.30407029]
[1742148768215,0.27931039,605.29,603.8,0.3312355]
[1742148768416,2.77190202,605.29,603.81,0.30407029]
[1742148768721,2.77190202,605.29,603.79,0.646]
[1742148768722,3.75291177,605.28,603.82,0.33122453]
[1742148768922,0.27931039,605.27,603.82,0.33122453]
[1742148770028,0.60974689,605.26,603.82,0.33122453]
[1742148770223,0.33044196,605.25,603.82,0.33122453]
[1742148770422,0.27931039,605.24,603.82,0.33122453]
[1742148770623,0.60976327,605.23,603.82,0.33122453]
[1742148770823,0.27931039,605.22,603.82,0.33122453]
[1742148771024,0.33045288,605.23,603.82,0.33122453]
[1742148771025,0.27931039,605.21,603.82,0.33122453]
[1742148771322,0.60977965,605.2,603.82,0.33122453]
[1742148771524,0.33047472,605.19,603.82,0.33122453]
[1742148771718,0.27931039,605.18,603.82,0.33122453]
[1742148771918,0.27931039,605.17,603.82,0.33122453]
[1742148772119,0.27931039,605.16,603.82,0.33122453]
[1742148772533,0.27931039,605.15,603.82,0.33122453]
[1742148773019,0.27931039,605.14,603.82,0.33122453]
[1742148773224,0.27931039,605.13,603.82,0.33122453]
[1742148773418,0.27931039,605.12,603.82,0.33122453]
[1742148773623,0.27931039,605.17,603.82,0.33122453]
[1742148773823,0.60980149,605.16,603.82,0.33122453]
[1742148774025,0.27931039,605.15,603.82,0.33122453]
[1742148774225,0.27931039,605.14,603.82,0.33122453]
[1742148774420,0.27931039,605.13,603.82,0.33122453]
[1742148774627,0.27931039,605.12,603.82,0.33122453]
[1742148774825,0.27931039,605.11,603.82,0.33122453]
[1742148775027,0.27931039,605.1,603.82,0.33122453]
[1742148775331,0.27928254,605.09,603.82,0.33122453]
[1742148775521,0.27928254,605.08,603.82,0.33122453]
[1742148775826,0.27928254,605.07,603.82,0.33122453]
[1742148776026,0.27928254,605.06,603.82,0.33122453]
[1742148776226,0.27928254,605.05,603.82,0.33122453]
[1742148776526,0.27928254,605.04,603.82,0.33122453]
[1742148776824,0.27928254,605.03,603.82,0.33122453]
[1742148777026,0.27924684,605.02,603.82,0.33122453]
[1742148777321,0.27924684,605.01,603.82,0.33122453]
[1742148777526,0.27924684,605.0,603.82,0.33122453]
[1742148777835,0.27924684,604.99,603.82,0.33122453]
[1742148778028,0.27924684,604.98,603.82,0.33122453]
[1742148778225,0.60984174,604.97,603.82,0.33122453]
[1742148778427,0.27924684,604.96,603.82,0.33122453]
[1742148778622,0.60985267,604.95,603.82,0.33122453]
[1742148778830,0.60985576,604.94,603.82,0.33122453]
[1742148779023,0.60986122,604.93,603.82,0.33122453]
[1742148779223,0.33062223,604.92,603.82,0.33122453]
[1742148779424,2.05114203,604.92,603.82,0.33122453]
[1742148779629,0.27924446,604.91,603.82,0.33122453]
[1742148779834,0.27924446,604.9,603.82,0.33122453]
[1742148780227,1.44127534,604.91,603.82,0.33122453]
[1742148780228,0.27924446,604.89,603.82,0.33122453]
[1742148780428,0.27924446,604.88,603.82,0.33122453]
[1742148780728,0.27924446,604.87,603.82,0.33122453]
[1742148780935,0.27924446,604.86,603.82,0.33122453]
[1742148781129,0.27924446,604.85,603.82,0.33122453]
[1742148781329,0.27924446,604.84,603.82,0.33122453]
[1742148781528,0.27924446,604.83,603.82,0.33122453]
[1742148781924,0.27924446,604.82,603.82,0.33122453]
[1742148782124,0.27924446,604.81,603.82,0.33122453]
[1742148782329,0.27927861,604.8,603.82,0.33122453]
[1742148782628,0.27927861,604.79,603.82,0.33122453]
[1742148782827,0.27927861,604.78,603.82,0.33122453]
[1742148783028,0.27927861,604.77,603.82,0.33122453]
[1742148783225,0.27927861,604.85,603.82,0.33122453]
[1742148783529,0.27927861,604.84,603.82,0.33122453]
[1742148783729,0.27927861,604.83,603.82,0.33122453]
[1742148784031,0.27927861,604.85,603.82,0.33122453]
[1742148784328,0.28808662,605.34,603.82,0.33122453]
[1742148784329,0.27936889,604.84,603.82,0.33122453]
[1742148784528,0.27936889,604.88,603.82,0.33122453]
[1742148784730,0.27936889,604.87,603.82,0.33122453]
[1742148784931,0.27936889,604.88,603.82,0.33122453]
[1742148785129,0.27936889,604.87,603.82,0.33122453]
[1742148785330,0.27936889,604.88,603.82,0.33122453]
[1742148785531,0.27936889,604.87,603.82,0.33122453]
[1742148785727,0.27936889,604.86,603.82,0.33122453]
[1742148785928,3.10252425,604.92,603.82,0.33122453]
[1742148786129,0.27942205,604.91,603.82,0.33122453]
[1742148792737,0.27942205,604.91,603.83,0.556]
[1742148802840,0.33062223,604.92,603.83,0.556]
[1742148803043,0.27946158,604.91,603.83,0.556]
[1742148804542,0.27945728,604.9,603.83,0.556]
[1742148804740,0.27945741,604.89,603.83,0.556]
[1742148804945,0.27945741,604.91,603.83,0.556]
[1742148805240,0.27945741,604.9,603.83,0.556]
[1742148805448,0.27945741,604.91,603.83,0.556]
[1742148805656,0.27945741,604.9,603.83,0.556]
[1742148806046,0.27945741,604.89,603.83,0.556]
[1742148806249,0.27945741,604.91,603.83,0.556]
[1742148806456,0.33062223,604.92,603.83,0.556]
[1742148806649,0.2794809,604.91,603.83,0.556]
[1742148808551,0.27946496,604.9,603.83,0.556]
[1742148808752,0.33062223,604.92,603.83,0.556]
[1742148808753,0.27946496,604.91,603.83,0.556]
[1742148808953,0.27946496,604.9,603.83,0.556]
[1742148809150,0.33062223,604.92,603.83,0.556]
[1742148809151,0.27946496,604.91,603.83,0.556]
[1742148809352,0.27946496,604.9,603.83,0.556]
[1742148809561,0.27946496,604.91,603.83,0.556]
[1742148813758,0.33062223,604.92,603.83,0.556]
[1742148813954,0.27945905,604.91,603.83,0.556]
[1742148816364,2.51346238,604.83,603.83,0.556]
[1742148816665,3.05136107,604.82,603.83,0.556]
[1742148816853,0.27945905,604.81,603.83,0.556]
[1742148817460,2.77190202,604.82,603.83,0.556]
[1742148817760,0.27945477,604.81,603.83,0.556]
[1742148820357,0.27945477,604.91,603.83,0.556]
[1742148820554,0.27945477,604.9,603.83,0.556]
[1742148820759,0.27945477,604.89,603.83,0.556]
[1742148820960,0.27945477,604.91,603.83,0.556]
[1742148821159,0.27945477,604.88,603.83,0.556]
[1742148821361,0.27945477,604.87,603.83,0.556]
[1742148821661,0.33062223,604.92,603.83,0.556]
[1742148821662,0.27945477,604.86,603.83,0.556]
[1742148821862,0.27945477,604.91,603.83,0.556]
[1742148822161,0.27945477,604.9,603.83,0.556]
[1742148822362,0.27945477,604.91,603.83,0.556]
[1742148822657,0.33062223,604.92,603.83,0.556]
[1742148822658,0.27945477,604.9,603.83,0.556]
[1742148822861,0.27945477,604.91,603.83,0.556]
[1742148823062,0.27945477,604.9,603.83,0.556]
[1742148823254,0.27945477,604.91,603.83,0.556]
[1742148823459,0.27945477,604.9,603.83,0.556]
[1742148823659,0.27945477,604.91,603.83,0.556]
[1742148823856,0.33062223,604.92,603.83,0.556]
[1742148823857,0.27945477,604.9,603.83,0.556]
[1742148824056,0.27945477,604.91,603.83,0.556]
[1742148824261,0.27945477,604.9,603.83,0.556]
[1742148824462,0.27945477,604.91,603.83,0.556]
[1742148824658,0.27945477,604.9,603.83,0.556]
[1742148824962,0.27945477,604.89,603.83,0.556]
[1742148825259,0.27945477,604.91,603.83,0.556]
[1742148825463,0.27945477,604.9,603.83,0.556]
[1742148825762,0.27945477,604.89,603.83,0.556]
[1742148825959,0.27945477,604.91,603.83,0.556]
[1742148826158,0.27945477,604.9,603.83,0.556]
[1742148826360,0.27945477,604.91,603.83,0.556]
[1742148826563,0.27945477,604.9,603.83,0.556]
[1742148826756,0.27945477,604.89,603.83,0.556]
[1742148826961,0.27945477,604.91,603.83,0.556]
[1742148827258,0.27945477,604.9,603.83,0.556]
[1742148827460,0.27945477,604.91,603.83,0.556]
[1742148827658,0.27945477,604.9,603.83,0.556]
[1742148827864,0.27945477,604.91,603.83,0.556]
[1742148828058,0.27945477,604.9,603.83,0.556]
[1742148828257,0.27945477,604.91,603.83,0.556]
[1742148828558,0.27945477,604.9,603.83,0.556]
[1742148828762,0.27945477,604.91,603.83,0.556]
[1742148828964,0.27945477,604.9,603.83,0.556]
[1742148829164,0.27945477,604.91,603.83,0.556]
[1742148829364,0.27945477,604.9,603.83,0.556]
[1742148829564,0.27945477,604.91,603.83,0.556]
[1742148829765,0.27945477,604.9,603.83,0.556]
[1742148830064,0.27945477,604.89,603.83,0.556]
[1742148830264,0.27945477,604.91,603.83,0.556]
[1742148831865,0.33062223,604.92,603.83,0.556]
[1742148832061,0.27947328,604.91,603.83,0.556]
[1742148834769,0.33062223,604.92,603.83,0.556]
[1742148834770,0.27947328,604.9,603.83,0.556]
[1742148834966,0.27947328,604.91,603.83,0.556]
[1742148835563,0.33062223,604.92,603.83,0.556]
[1742148835765,0.27947342,604.91,603.83,0.556]
[1742148836170,0.27947342,604.9,603.83,0.556]
[1742148836567,0.27947342,604.89,603.83,0.556]
[1742148836773,0.27947342,604.91,603.83,0.556]
[1742148836970,0.33062223,604.92,603.83,0.556]
[1742148837170,0.27952338,604.9,603.83,0.556]
[1742148837474,0.27952338,604.89,603.83,0.556]
[1742148837671,0.27952338,604.91,603.83,0.556]
[1742148837873,0.27952338,604.9,603.83,0.556]
[1742148838074,3.75323844,604.9,603.83,0.556]
[1742148838271,1.72239223,604.89,603.83,0.556]
[1742148838471,0.27952338,604.88,603.83,0.556]
[1742148838672,1.72239223,604.88,603.83,0.556]
[1742148838866,0.27952338,604.87,603.83,0.556]
[1742148839071,1.72291906,604.87,603.83,0.556]
[1742148839273,1.44339568,604.87,603.83,0.556]
[1742148839474,0.27951102,604.86,603.83,0.556]
[1742148839976,1.7229067,604.86,603.83,0.556]
[1742148840168,0.27951102,604.85,603.83,0.556]
[1742148840573,1.72331037,604.85,603.83,0.556]
[1742148840770,1.44379935,604.85,603.83,0.556]
[1742148841073,0.27951116,604.84,603.83,0.556]
[1742148841674,1.72331051,604.84,603.83,0.556]
[1742148841875,5.19702557,604.84,603.83,0.556]
[1742148842075,0.27951116,604.83,603.83,0.556]
[1742148842275,0.27951355,604.82,603.83,0.556]
[1742148842779,0.27951355,604.81,603.83,0.556]
[1742148843176,3.75322861,604.82,603.83,0.556]
[1742148843477,0.27951355,604.81,603.83,0.556]
[1742148844278,0.27951431,604.8,603.83,0.556]
[1742148844471,0.27951431,604.82,603.83,0.556]
[1742148844874,2.77190202,604.9,603.83,0.556]
[1742148844875,3.75691548,604.89,603.83,0.556]
[1742148845172,0.27951431,604.88,603.83,0.556]
[1742148846079,4.21515553,604.88,603.83,0.556]
[1742148846278,5.20017239,604.87,603.83,0.556]
[1742148846576,1.72277122,604.86,603.83,0.556]
[1742148846780,0.27951771,604.85,603.83,0.556]
[1742148848277,1.72277122,604.85,603.83,0.556]
[1742148848480,0.27951771,604.84,603.83,0.556]
[1742148849679,3.05141973,604.84,603.83,0.556]
[1742148849881,3.75691888,604.83,603.82,0.33122453]
[1742148850177,0.27951771,604.82,603.82,0.33122453]
[1742148850578,0.27951771,604.81,603.82,0.33122453]
[1742148850882,2.77190202,604.84,603.82,0.33122453]
[1742148850883,0.27951771,604.8,603.82,0.33122453]
[1742148851077,0.27951771,604.83,603.82,0.33122453]
[1742148851282,0.27951771,604.79,603.82,0.33122453]
[1742148851583,0.27951771,604.78,603.82,0.33122453]
[1742148851981,0.27951771,604.91,603.82,0.33122453]
[1742148852278,0.27951771,604.9,603.82,0.33122453]
[1742148852480,0.27951771,604.91,603.83,0.613]
[1742148852679,0.27951771,604.9,603.83,0.613]
[1742148852877,0.27951771,604.91,603.83,0.613]
[1742148853081,0.27951771,604.89,603.83,0.613]
[1742148853482,0.27951771,604.91,603.83,0.613]
[1742148853680,0.27951771,604.9,603.83,0.613]
[1742148853883,0.27951771,604.91,603.83,0.613]
[1742148854083,0.27951771,604.89,603.83,0.613]
[1742148854280,0.27951771,604.88,603.83,0.613]
[1742148854585,0.27951771,604.91,603.83,0.613]
[1742148854787,0.27951771,604.87,603.83,0.613]
[1742148854985,0.27951771,604.91,603.83,0.613]
[1742148855180,0.27947192,604.9,603.83,0.613]
[1742148855488,0.27947192,604.89,603.83,0.613]
[1742148855681,0.27947192,604.91,603.83,0.613]
[1742148855884,0.27947192,604.9,603.83,0.613]
[1742148856182,0.27947192,604.89,603.83,0.613]
[1742148856381,0.27947192,604.88,603.83,0.613]
[1742148856581,0.27947192,604.91,603.83,0.613]
[1742148856786,0.27947192,604.9,603.83,0.613]
[1742148856981,0.27945738,604.89,603.83,0.613]
[1742148857188,0.27945738,604.91,603.83,0.613]
[1742148857384,0.27945738,604.9,603.83,0.613]
[1742148857580,0.27945738,604.91,603.83,0.613]
[1742148857788,0.27945738,604.9,603.83,0.613]
[1742148858086,0.27945738,604.89,603.83,0.613]
[1742148858286,0.27945738,604.91,603.83,0.613]
[1742148862390,1.72214134,604.91,603.83,0.613]
[1742148862595,0.27945738,604.9,603.83,0.613]
[1742148863097,1.72214134,604.9,603.83,0.613]
[1742148863396,0.27945738,604.89,603.82,0.33122453]
[1742148864194,3.0513594,604.89,603.82,0.33122453]
[1742148864392,3.75568197,604.88,603.82,0.33122453]
[1742148864693,0.27945738,604.87,603.82,0.33122453]
[1742148864896,0.27945008,604.86,603.82,0.33122453]
[1742148865197,0.27945008,604.85,603.82,0.33122453]
[1742148865398,0.27945008,604.87,603.82,0.33122453]
[1742148865600,0.27945008,604.86,603.82,0.33122453]
[1742148866398,0.27945008,604.86,603.83,0.472]
[1742148867306,0.27945008,604.85,603.83,0.472]
[1742148867502,0.27945008,604.84,603.83,0.472]
[1742148867701,0.27945008,604.91,603.83,0.472]
[1742148868306,0.2794422,604.9,603.83,0.472]
[1742148868502,0.2794422,604.91,603.83,0.472]
[1742148868702,0.2794422,604.9,603.83,0.472]
[1742148868905,0.2794422,604.89,603.83,0.472]
[1742148869105,0.2794422,604.91,603.83,0.472]
[1742148869404,0.2794422,604.9,603.83,0.472]
[1742148869600,0.27943993,604.89,603.83,0.472]
[1742148870000,0.27943993,604.88,603.83,0.472]
[1742148870199,0.27943993,604.91,603.83,0.472]
[1742148870398,0.27944259,604.9,603.83,0.472]
[1742148870704,0.27944259,604.89,603.83,0.472]
[1742148870899,0.27944259,604.91,603.83,0.472]
[1742148874404,0.27944259,604.9,603.83,0.472]
[1742148874708,0.27944259,604.89,603.83,0.472]
[1742148874907,0.27944259,604.88,603.83,0.472]
[1742148875106,0.27944259,604.91,603.83,0.472]
[1742148875301,0.27944259,604.9,603.83,0.472]
[1742148875505,0.27944259,604.89,603.83,0.472]
[1742148875708,0.27944259,604.88,603.83,0.472]
[1742148875908,0.27944259,604.91,603.83,0.472]
[1742148876108,0.27944259,604.9,603.83,0.472]
[1742148876406,0.27944259,604.89,603.83,0.472]
[1742148876607,0.27944259,604.88,603.83,0.472]
[1742148876801,0.27944259,604.87,603.83,0.472]
[1742148877002,3.47498813,604.91,603.83,0.472]
[1742148877205,3.05142978,604.9,603.83,0.472]
[1742148877403,3.75451589,604.89,603.83,0.472]
[1742148877711,0.27952776,604.88,603.83,0.472]
[1742148878110,0.27952776,604.87,603.83,0.472]
[1742148878302,0.27952776,604.88,603.83,0.472]
[1742148878508,0.27952776,604.87,603.83,0.472]
[1742148878704,0.27952776,604.88,603.83,0.472]
[1742148878904,0.27952776,604.87,603.83,0.472]
[1742148879309,3.75451589,604.87,603.83,0.472]
[1742148879508,0.27952776,604.86,603.83,0.472]
[1742148880311,0.33065502,604.86,603.83,0.472]
[1742148880704,3.10255704,604.86,603.83,0.472]
[1742148880908,3.75444887,604.85,603.83,0.472]
[1742148881107,0.61027704,604.84,603.83,0.472]
[1742148881308,0.6102825,604.83,603.83,0.472]
[1742148881505,0.61028797,604.82,603.83,0.472]
[1742148881710,0.61029344,604.81,603.83,0.472]
[1742148881910,0.61029891,604.8,603.83,0.472]
[1742148882110,0.27961108,604.79,603.83,0.472]
[1742148888116,0.27958586,604.78,603.83,0.472]
[1742148888318,0.33068783,604.8,603.83,0.472]
[1742148888319,0.27958586,604.79,603.83,0.472]
[1742148888617,0.27958586,604.78,603.83,0.472]
[1742148888819,0.33068783,604.8,603.83,0.472]
[1742148889015,0.27958606,604.79,603.83,0.472]
[1742148890217,0.27959302,604.78,603.83,0.472]
[1742148890517,0.27959302,604.77,603.83,0.472]
[1742148890819,0.27959302,604.76,603.83,0.472]
[1742148891014,0.27959302,604.79,603.83,0.472]
[1742148891217,0.27959302,604.78,603.83,0.472]
[1742148896621,0.27960831,604.78,603.83,0.472]
[1742148899226,0.33069329,604.79,603.83,0.472]
[1742148899426,0.27961827,604.78,603.83,0.472]
[1742148900621,0.27961827,604.77,603.83,0.472]
[1742148901028,0.27961827,604.76,603.83,0.472]
[1742148901228,0.61033344,604.75,603.83,0.472]
[1742148901429,0.61033891,604.74,603.83,0.472]
[1742148901629,0.27965358,604.73,603.83,0.472]
[1742148901831,0.27965358,604.72,603.83,0.472]
[1742148902026,0.27965358,604.73,603.83,0.472]
[1742148902226,0.61038515,604.72,603.83,0.472]
[1742148902427,0.27965358,604.71,603.83,0.472]
[1742148904233,0.27961211,604.7,603.83,0.472]
[1742148904536,0.27961211,604.69,603.83,0.472]
[1742148904734,0.27961211,604.71,603.83,0.472]
[1742148905027,0.27961211,604.7,603.83,0.472]
[1742148905231,0.27961211,604.71,603.83,0.472]
[1742148905426,0.27961211,604.69,603.83,0.472]
[1742148905628,0.27961211,604.68,603.83,0.472]
[1742148905833,0.27961211,604.71,603.83,0.472]
[1742148907835,0.33073157,604.72,603.83,0.472]
[1742148908036,0.27962044,604.71,603.83,0.472]
[1742148909230,0.27962044,604.7,603.83,0.472]
[1742148909431,0.27962044,604.69,603.83,0.472]
[1742148909636,3.74033356,604.71,603.83,0.472]
[1742148909836,0.27962227,604.7,603.83,0.472]
[1742148910136,2.51346238,604.63,603.83,0.472]
[1742148910336,0.27962227,604.62,603.83,0.472]
[1742148911130,3.05152429,604.62,603.83,0.472]
[1742148911331,0.27962227,604.61,603.83,0.472]
[1742148911537,3.74012508,604.61,603.83,0.472]
[1742148911736,1.71628801,604.6,603.83,0.472]
[1742148911941,0.27962227,604.59,603.83,0.472]
[1742148912235,0.27962227,604.58,603.83,0.472]
[1742148912434,0.27962227,604.57,603.83,0.472]
[1742148912740,0.27962227,604.56,603.83,0.472]
[1742148912935,0.27962227,604.55,603.83,0.472]
[1742148913131,0.27962227,604.54,603.83,0.472]
[1742148913335,0.27961986,604.53,603.83,0.472]
[1742148913630,2.51346238,604.49,603.83,0.472]
[1742148913834,0.27961986,604.48,603.83,0.472]
[1742148914741,3.05152188,604.48,603.83,0.472]
[1742148915240,0.27961986,604.47,603.83,0.472]
[1742148915944,3.76024299,604.47,603.83,0.472]
[1742148916136,0.27961986,604.46,603.83,0.472]
[1742148916342,0.27961986,604.47,603.83,0.472]
[1742148916643,0.27961986,604.46,603.83,0.472]
[1742148916839,2.51346238,604.46,603.83,0.472]
[1742148917042,0.27961986,604.45,603.83,0.472]
[1742148919945,0.27961986,604.71,603.83,0.472]
[1742148920139,0.61036237,604.7,603.83,0.472]
[1742148920339,0.61036784,604.69,603.83,0.472]
[1742148920545,0.61037331,604.68,603.83,0.472]
[1742148920740,0.61037878,604.67,603.83,0.472]
[1742148920942,0.61038425,604.66,603.83,0.472]
[1742148921139,0.61038972,604.65,603.83,0.472]
[1742148921446,0.61039519,604.64,603.83,0.472]
[1742148921641,0.61040066,604.63,603.83,0.472]
[1742148921838,0.61040613,604.62,603.83,0.472]
[1742148922041,0.27961986,604.61,603.83,0.472]
[1742148923343,0.27961986,604.6,603.83,0.472]
[1742148923549,0.27961986,604.59,603.83,0.472]
[1742148923746,0.27961986,604.58,603.83,0.472]
[1742148923946,0.27961986,604.57,603.83,0.472]
[1742148924147,0.27961986,604.56,603.83,0.472]
[1742148924346,0.27961986,604.55,603.83,0.472]
[1742148924542,0.27961986,604.61,603.03,0.28830262]
[1742148924747,0.27961986,604.6,603.05,0.33164745]
[1742148925044,0.33078627,604.62,603.06,0.3044431]
[1742148925249,0.27967855,604.61,603.08,0.33163096]
[1742148925449,0.27967855,604.6,603.09,0.3044431]
[1742148925650,0.27967855,604.59,603.11,0.33161446]
[1742148925850,0.27967855,604.58,603.12,0.3044431]
[1742148926043,0.27967855,604.57,603.14,0.33159797]
[1742148926246,0.27967855,604.56,603.15,0.3044431]
[1742148926445,0.27967855,604.55,603.17,0.33158147]
[1742148926847,0.27967855,604.54,603.18,0.3044431]
[1742148927048,0.27967855,604.53,603.18,0.3044431]
[1742148927345,0.27967855,604.52,603.18,0.3044431]
[1742148927546,0.27967855,604.51,603.18,0.3044431]
[1742148927744,0.27967855,604.5,603.19,0.33157048]
[1742148927948,0.27967855,604.49,603.2,0.3044431]
[1742148928145,0.27967855,604.48,603.21,0.33155949]
[1742148928550,0.27967855,604.47,603.21,0.33155949]
[1742148928750,0.27967855,604.46,603.21,0.33155949]
[1742148929050,0.27967855,604.45,603.21,0.33155949]
[1742148929445,0.27967855,604.44,603.21,0.33155949]
[1742148929746,0.27967855,604.43,603.21,0.33155949]
[1742148929954,0.27967855,604.49,603.21,0.33155949]
[1742148930353,0.27967855,604.61,603.21,0.33155949]
[1742148939469,0.33078627,604.62,603.21,0.33155949]
[1742148939660,0.27966011,604.61,603.21,0.33155949]
[1742148944569,0.27966011,604.61,603.22,0.30440306]
[1742148944769,0.27966011,604.61,603.24,0.331543]
[1742148946064,0.27966011,604.6,603.24,0.331543]
[1742148946267,0.27966011,604.59,603.24,0.331543]
[1742148946465,0.27966011,604.61,603.25,0.30439878]
[1742148946662,0.27966011,604.6,603.24,0.331543]
[1742148946868,0.27966011,604.59,603.24,0.331543]
[1742148947069,0.27966011,604.58,603.25,0.30439511]
[1742148947263,0.27966011,604.61,603.26,0.331532]
[1742148947466,0.33078627,604.62,603.26,0.331532]
[1742148947467,0.27966011,604.6,603.26,0.331532]
[1742148947668,0.27966011,604.61,603.26,0.331532]
[1742148950072,3.77078166,604.61,603.26,0.331532]
[1742148950272,0.27966011,604.6,603.26,0.331532]
[1742148950673,3.05316754,604.6,603.26,0.331532]
[1742148950873,0.27966011,604.59,603.26,0.331532]
[1742148952469,0.27966011,604.61,603.26,0.331532]
[1742148952670,0.27966011,604.6,603.26,0.331532]
[1742148952871,0.27966011,604.61,603.27,0.30436091]